bitfinex-derivatives/quotes_BTCF0:USTF0_20250130
["timestamp","ask_amount","ask_price","bid_price","bid_amount"]
[1738249507891,0.342,106040.0,106030.0,0.582755]
[1738249508087,0.342,106040.0,106030.0,0.73646624]
[1738249508278,0.342,106040.0,106030.0,0.582755]
[1738249508599,0.00014122,106050.0,106040.0,0.188617]
[1738249508788,0.13930276,106090.0,106040.0,0.80752248]
[1738249509002,0.13930276,106090.0,106080.0,0.3608]
[1738249509289,0.13930276,106090.0,106080.0,0.55307124]
[1738249509593,0.13930276,106090.0,106080.0,0.39936]
[1738249509794,0.13930276,106090.0,106080.0,0.3608]
[1738249509986,0.13930276,106090.0,106080.0,0.55311124]
[1738249510189,0.13930276,106090.0,106080.0,0.39936]
[1738249510386,0.13930276,106090.0,106080.0,0.3608]
[1738249511186,0.13930276,106090.0,106080.0,0.70305724]
[1738249512588,0.10014122,106100.0,106080.0,0.70305724]
[1738249512793,0.10014122,106100.0,106090.0,0.3608]
[1738249513101,0.10014122,106100.0,106080.0,0.56169299]
[1738249513102,0.002,106090.0,106080.0,0.56169299]
[1738249513283,0.002,106090.0,106080.0,0.37314699]
[1738249513594,0.15571124,106090.0,106080.0,0.3608]
[1738249513798,0.46094122,106100.0,106080.0,0.3608]
[1738249514090,0.46294122,106100.0,106080.0,0.3608]
[1738249514396,0.61665246,106100.0,106080.0,0.3608]
[1738249514592,0.46294122,106100.0,106080.0,0.3608]
[1738249515094,0.34,106090.0,106080.0,0.3608]
[1738249515491,0.342,106090.0,106080.0,0.3608]
[1738249515686,0.342,106090.0,106080.0,0.549346]
[1738249515886,0.342,106090.0,106080.0,0.551346]
[1738249516085,0.002,106090.0,106080.0,0.70505724]
[1738249516288,0.10014122,106100.0,106090.0,0.188528]
[1738249516488,0.10014122,106100.0,106090.0,0.549328]
[1738249517296,0.61465246,106100.0,106080.0,0.55234]
[1738249517489,0.61465246,106100.0,106080.0,0.003]
[1738249517490,0.3608,106090.0,106080.0,0.003]
[1738249517790,0.61465246,106100.0,106080.0,0.003]
[1738249518000,0.46094122,106100.0,106080.0,0.003]
[1738249518188,0.46094122,106100.0,106080.0,0.3638]
[1738249518493,0.46094122,106100.0,106090.0,0.002]
[1738249518990,0.46094122,106100.0,106080.0,0.3648]
[1738249519189,0.46094122,106100.0,106080.0,0.552345]
[1738249519387,0.3608,106090.0,106080.0,0.003]
[1738249519589,0.79441124,106090.0,106080.0,0.003]
[1738249519994,0.79441124,106090.0,106080.0,0.002]
[1738249520796,0.79441124,106090.0,106070.0,0.00014122]
[1738249520997,0.3608,106080.0,106070.0,0.00014122]
[1738249521193,0.4993,106080.0,106070.0,0.00014122]
[1738249521597,0.4993,106080.0,106070.0,0.18870522]
[1738249521901,0.3608,106080.0,106070.0,0.34241646]
[1738249522399,0.3608,106080.0,106070.0,0.18870522]
[1738249523300,0.7018,106080.0,106070.0,0.18870522]
[1738249523700,0.341,106080.0,106070.0,0.18870522]
[1738249524000,0.7018,106080.0,106070.0,0.18870522]
[1738249524193,0.7018,106080.0,106070.0,0.00014122]
[1738249524506,0.341,106080.0,106070.0,0.18870522]
[1738249524905,0.341,106080.0,106070.0,0.54950522]
[1738249525297,0.341,106080.0,106070.0,0.70321646]
[1738249525497,0.001,106080.0,106070.0,0.70321646]
[1738249525900,0.001,106080.0,106070.0,0.18849387]
[1738249526290,0.001,106080.0,106070.0,0.70300511]
[1738249526495,0.001,106080.0,106070.0,0.54929387]
[1738249527196,0.001,106080.0,106070.0,0.55429387]
[1738249527605,0.34,106090.0,106080.0,0.188546]
[1738249527799,0.57302818,106100.0,106080.0,0.188546]
[1738249528005,0.72673942,106100.0,106080.0,0.188546]
[1738249530000,0.3608,106090.0,106070.0,0.3678]
[1738249530201,0.91525942,106100.0,106080.0,0.002]
[1738249530396,0.3608,106090.0,106080.0,0.002]
[1738249530792,0.70303924,106090.0,106080.0,0.002]
[1738249530998,0.70303924,106090.0,106080.0,0.003]
[1738249531303,0.87795924,106090.0,106080.0,0.002]
[1738249532098,0.34,106080.0,106070.0,0.188562]
[1738249532300,0.98921124,106080.0,106070.0,0.188562]
[1738249533302,0.98921124,106080.0,106060.0,0.20109489]
[1738249533303,1.32196024,106080.0,106060.0,0.20109489]
[1738249533609,0.3608,106070.0,106060.0,0.20109489]
[1738249533801,0.98018,106080.0,106060.0,0.01252389]
[1738249534109,0.70194122,106080.0,106070.0,0.188563]
[1738249534504,0.85565246,106080.0,106070.0,0.188563]
[1738249534897,0.70194122,106080.0,106070.0,0.188563]
[1738249535296,0.81402818,106080.0,106070.0,0.188563]
[1738249535499,0.45322818,106080.0,106070.0,0.188563]
[1738249535710,0.45222818,106080.0,106070.0,0.188563]
[1738249536302,0.81302818,106080.0,106070.0,0.188563]
[1738249536704,0.81402818,106080.0,106070.0,0.188563]
[1738249537102,0.47402818,106080.0,106070.0,0.188563]
[1738249537812,1.15628542,106080.0,106060.0,0.56189589]
[1738249538108,0.96773942,106080.0,106070.0,0.188563]
[1738249538411,0.81402818,106080.0,106070.0,0.188563]
[1738249539112,0.81302818,106080.0,106070.0,0.188563]
[1738249539316,1.15529842,106080.0,106060.0,0.20110089]
[1738249539815,1.15529842,106080.0,106070.0,0.188564]
[1738249539816,0.81302818,106080.0,106070.0,0.188564]
[1738249540022,0.81402818,106080.0,106070.0,0.188564]
[1738249540227,0.81402818,106080.0,106060.0,0.01452389]
[1738249540521,0.81402818,106080.0,106060.0,0.20309889]
[1738249540718,0.96773942,106080.0,106060.0,0.20309889]
[1738249541019,0.96773942,106080.0,106060.0,0.01452389]
[1738249541218,0.60693942,106080.0,106070.0,0.188564]
[1738249541426,0.81402818,106080.0,106070.0,0.188564]
[1738249541820,0.84124398,106080.0,106070.0,0.188564]
[1738249542010,0.48044398,106080.0,106070.0,0.188564]
[1738249542215,0.84124398,106080.0,106070.0,0.188564]
[1738249542725,1.02978998,106080.0,106070.0,0.188564]
[1738249542922,1.02878998,106080.0,106070.0,0.188564]
[1738249543119,1.18250122,106080.0,106060.0,0.20309689]
[1738249543311,0.84250122,106080.0,106060.0,0.20309689]
[1738249543518,0.84250122,106080.0,106060.0,0.20109689]
[1738249543825,0.34,106070.0,106060.0,0.20109689]
[1738249544619,0.34,106070.0,106060.0,0.20309689]
[1738249545121,0.8136427,106070.0,106060.0,0.20109689]
[1738249545321,0.8136427,106070.0,106060.0,0.20309689]
[1738249545913,1.10465713,106070.0,106060.0,0.01452389]
[1738249546117,0.91609313,106070.0,106060.0,0.01452389]
[1738249546317,0.91609313,106070.0,106060.0,0.20310489]
[1738249546526,0.8136427,106070.0,106060.0,0.20310489]
[1738249546723,0.91609313,106070.0,106060.0,0.01452389]
[1738249547126,1.10465613,106070.0,106060.0,0.01452389]
[1738249547317,0.91609313,106070.0,106060.0,0.01452389]
[1738249547517,0.91609313,106070.0,106060.0,0.00214122]
[1738249547918,1.10465613,106070.0,106060.0,0.00214122]
[1738249548124,1.10465613,106070.0,106060.0,0.19072222]
[1738249548320,0.91609313,106070.0,106060.0,0.19072222]
[1738249548717,0.57609313,106070.0,106060.0,0.19072222]
[1738249548927,0.4736427,106070.0,106060.0,0.19072222]
[1738249549316,0.64604812,106070.0,106060.0,0.19072222]
[1738249549519,0.64604812,106070.0,106060.0,0.29317265]
[1738249549729,0.64604812,106070.0,106060.0,0.19072222]
[1738249550327,0.74849855,106070.0,106060.0,0.00214122]
[1738249550627,0.74849855,106070.0,106060.0,0.19072222]
[1738249552714,0.64604812,106070.0,106060.0,0.19072222]
[1738249552918,1.29786255,106070.0,106060.0,0.00214122]
[1738249553222,0.74849855,106070.0,106060.0,0.00214122]
[1738249553427,0.64604812,106070.0,106060.0,0.19072222]
[1738249553624,0.47930276,106070.0,106060.0,0.55152222]
[1738249554219,0.48030276,106070.0,106060.0,0.19072222]
[1738249555135,0.48030276,106070.0,106060.0,0.55152222]
[1738249555931,0.47930276,106070.0,106060.0,0.55152222]
[1738249556130,0.47930276,106070.0,106060.0,0.65397265]
[1738249556431,0.59222364,106070.0,106060.0,0.65397265]
[1738249556632,0.59222364,106070.0,106060.0,0.55152222]
[1738249556833,0.59222364,106070.0,106060.0,0.65397265]
[1738249557444,0.25222364,106070.0,106060.0,0.68925265]
[1738249558635,0.03232364,106070.0,106060.0,0.68925265]
[1738249559021,0.03232364,106070.0,106060.0,0.68913265]
[1738249560029,0.03246486,106080.0,106070.0,0.188564]
[1738249560229,0.03246486,106080.0,106070.0,0.467464]
[1738249560424,0.03246486,106080.0,106070.0,0.31394]
[1738249560734,0.13491529,106080.0,106070.0,0.863304]
[1738249560931,0.03246486,106080.0,106070.0,0.863304]
[1738249561129,0.03246486,106080.0,106070.0,0.6397]
[1738249561130,0.13491529,106080.0,106070.0,0.6397]
[1738249561429,0.27621529,106080.0,106060.0,0.36094122]
[1738249561836,0.27621529,106080.0,106070.0,0.188564]
[1738249562331,0.27721529,106080.0,106070.0,0.188564]
[1738249562847,0.14244122,106080.0,106070.0,0.188564]
[1738249563134,0.24489165,106080.0,106070.0,0.188564]
[1738249563336,0.79423765,106080.0,106060.0,0.54951222]
[1738249563532,0.10245043,106070.0,106060.0,0.54952022]
[1738249563731,0.10245043,106070.0,106060.0,0.55152022]
[1738249563933,0.24489165,106080.0,106070.0,0.188564]
[1738249564153,0.00114122,106080.0,106070.0,0.65181443]
[1738249564435,0.00114122,106080.0,106070.0,0.549364]
[1738249564940,0.00114122,106080.0,106070.0,0.65181443]
[1738249565733,0.00014122,106080.0,106070.0,0.65181443]
[1738249566739,0.34114122,106080.0,106070.0,0.549364]
[1738249567041,0.44359165,106080.0,106070.0,0.549364]
[1738249567243,0.34114122,106080.0,106070.0,0.549364]
[1738249567444,0.44359165,106080.0,106070.0,0.3608]
[1738249567639,0.10359165,106080.0,106070.0,0.3608]
[1738249567940,0.10359165,106080.0,106060.0,0.58423422]
[1738249567941,0.10359165,106080.0,106060.0,0.58419422]
[1738249568144,0.44245043,106070.0,106060.0,0.54951422]
[1738249568439,0.34,106070.0,106060.0,0.54951422]
[1738249568747,0.00114122,106080.0,106070.0,0.188564]
[1738249569242,0.00114122,106080.0,106060.0,0.18871522]
[1738249569243,0.29113865,106080.0,106060.0,0.18871522]
[1738249569445,0.46325043,106070.0,106060.0,0.00014122]
[1738249569744,0.23885043,106070.0,106060.0,0.00214122]
[1738249569937,0.74035043,106070.0,106060.0,0.00214122]
[1738249570137,0.74035043,106070.0,106060.0,0.01175835]
[1738249570438,0.46439165,106080.0,106060.0,0.01175835]
[1738249570642,0.78934065,106080.0,106060.0,0.20033235]
[1738249570839,0.3608,106070.0,106060.0,0.20233235]
[1738249571341,0.46325043,106070.0,106060.0,0.20233235]
[1738249571544,0.65181343,106070.0,106060.0,0.01375835]
[1738249572043,0.68633343,106070.0,106060.0,0.00214122]
[1738249572250,0.49777043,106070.0,106060.0,0.19072222]
[1738249572548,0.3608,106070.0,106060.0,0.19072222]
[1738249573343,0.46325043,106070.0,106060.0,0.19072222]
[1738249573740,0.46325043,106070.0,106060.0,0.00214122]
[1738249574045,0.65181343,106070.0,106060.0,0.00214122]
[1738249574957,0.68621343,106070.0,106060.0,0.00214122]
[1738249576044,0.94724386,106070.0,106030.0,0.38666968]
[1738249576253,0.65186743,106040.0,106030.0,0.38666968]
[1738249576644,0.79506743,106040.0,106030.0,0.57530468]
[1738249577147,0.79506743,106040.0,106030.0,0.57930468]
[1738249577945,0.79506743,106040.0,106030.0,0.39066968]
[1738249578246,0.188635,106030.0,106020.0,0.27481303]
[1738249578445,0.83268543,106030.0,106020.0,0.27481303]
[1738249579138,0.83268543,106030.0,106020.0,0.00014122]
[1738249579738,0.188652,106020.0,106010.0,0.00184076]
[1738249579953,0.75435286,106020.0,106010.0,0.00184076]
[1738249580944,0.86570086,106020.0,106000.0,9.416e-05]
[1738249581146,0.68600043,106010.0,106000.0,9.416e-05]
[1738249581443,0.96850043,106010.0,106000.0,9.416e-05]
[1738249581645,0.82766043,106010.0,106000.0,0.18878216]
[1738249581844,0.65192043,106010.0,106000.0,0.18878216]
[1738249582949,0.65392043,106010.0,106000.0,0.18878216]
[1738249583351,0.65592043,106010.0,106000.0,0.18878216]
[1738249583852,0.65592043,106010.0,106000.0,9.416e-05]
[1738249584353,0.65692043,106010.0,106000.0,9.416e-05]
[1738249584657,0.65692043,106010.0,106000.0,0.18878216]
[1738249584855,0.65692043,106010.0,106000.0,9.416e-05]
[1738249585752,0.95692043,106010.0,106000.0,9.416e-05]
[1738249585947,0.29115643,105990.0,105980.0,0.329917]
[1738249586148,0.65195643,105990.0,105980.0,0.329917]
[1738249587661,0.65195643,105990.0,105980.0,0.331917]
[1738249588051,0.99195643,105990.0,105980.0,0.331917]
[1738249588245,1.45520686,105990.0,105980.0,0.1432]
[1738249588455,1.45520686,105990.0,105980.0,0.002]
[1738249588666,1.26650086,105990.0,105960.0,0.13421543]
[1738249588853,0.65199143,105970.0,105960.0,0.13421543]
[1738249589148,1.01279143,105970.0,105960.0,0.13421543]
[1738249589353,0.188768,105960.0,105940.0,0.454092]
[1738249589557,0.549568,105960.0,105940.0,0.586892]
[1738249589853,0.10245043,105970.0,105960.0,0.195759]
[1738249590053,0.65211765,105980.0,105970.0,0.188741]
[1738249590244,0.65211765,105980.0,105970.0,0.2652]
[1738249590448,0.65211765,105980.0,105970.0,0.1328]
[1738249590652,0.188741,105970.0,105960.0,0.009]
[1738249590850,0.46325043,105970.0,105960.0,0.197759]
[1738249591055,0.46325043,105970.0,105960.0,0.189759]
[1738249591454,0.00014122,105980.0,105970.0,0.188741]
[1738249591659,0.3608,106010.0,105990.0,0.188694]
[1738249591660,0.65192543,106010.0,105990.0,0.188694]
[1738249591857,0.65192543,106010.0,106000.0,0.188688]
[1738249592049,0.549475,106010.0,106000.0,0.188688]
[1738249592258,0.65192543,106010.0,106000.0,0.188688]
[1738249592649,0.188688,106000.0,105990.0,0.188703]
[1738249592853,0.65192343,106010.0,105990.0,0.222543]
[1738249593059,0.65192343,106010.0,105990.0,0.22268422]
[1738249593260,0.65192343,106010.0,105990.0,0.58348422]
[1738249593459,0.65692343,106010.0,106000.0,0.001]
[1738249593660,0.47125043,106010.0,106000.0,0.001]
[1738249593859,0.46625043,106010.0,106000.0,0.188688]
[1738249594160,0.47025043,106010.0,106000.0,0.188688]
[1738249594362,0.46925043,106010.0,106000.0,0.188688]
[1738249594958,0.70936152,106010.0,105990.0,0.18884522]
[1738249595259,0.70337952,106000.0,105990.0,0.00014122]
[1738249595558,0.85727104,106000.0,105990.0,0.00014122]
[1738249595766,0.98317952,106000.0,105990.0,0.00014122]
[1738249595952,1.17071104,106000.0,105990.0,0.00014122]
[1738249596155,1.01681952,106000.0,105990.0,0.00014122]
[1738249596461,0.34257952,106000.0,105990.0,0.18884722]
[1738249596658,0.583115,106010.0,105990.0,0.18884722]
[1738249596856,0.583115,106010.0,105990.0,0.32734722]
[1738249596857,0.3618,106000.0,105990.0,0.32734722]
[1738249597164,0.7018,106000.0,105990.0,0.32734722]
[1738249597351,0.7028,106000.0,105990.0,0.32634722]
[1738249599062,0.342,106000.0,105990.0,0.32634722]
[1738249599367,0.001,106000.0,105990.0,0.84103874]
[1738249599663,0.34,106010.0,106000.0,0.188671]
[1738249599865,0.34,106010.0,106000.0,0.222151]
[1738249600063,0.7008,106010.0,106000.0,0.222151]
[1738249600263,0.34,106010.0,106000.0,0.222151]
[1738249601057,0.34,106010.0,106000.0,0.223151]
[1738249601856,0.34,106010.0,106000.0,0.73784252]
[1738249602167,0.34,106010.0,106000.0,0.583951]
[1738249602556,0.00155694,106020.0,106010.0,0.18867]
[1738249602762,0.13988354,106040.0,106030.0,0.188634]
[1738249602963,0.13988354,106040.0,106030.0,0.222074]
[1738249603165,0.47988354,106040.0,106030.0,0.222074]
[1738249603563,0.47988354,106040.0,106030.0,0.582874]
[1738249603765,0.52754536,106050.0,106030.0,0.54813152]
[1738249603958,0.16688658,106050.0,106040.0,0.84390852]
[1738249604363,0.16688658,106050.0,106040.0,0.690017]
[1738249604870,0.00014122,106050.0,106040.0,0.690017]
[1738249605274,0.34,106060.0,106050.0,0.188599]
[1738249605472,0.34,106060.0,106050.0,0.582839]
[1738249605764,0.34,106060.0,106050.0,0.222039]
[1738249606564,0.348,106060.0,106050.0,0.223039]
[1738249606763,0.35,106060.0,106050.0,0.73873052]
[1738249606970,0.01,106060.0,106050.0,0.88193052]
[1738249607970,0.16674536,106080.0,106060.0,0.15389152]
[1738249608271,0.16674536,106080.0,106070.0,0.87809452]
[1738249608476,0.50674536,106080.0,106070.0,0.87809452]
[1738249608768,0.50674536,106080.0,106070.0,0.724203]
[1738249608974,0.3608,106090.0,106070.0,0.724203]
[1738249609272,0.00014122,106090.0,106080.0,0.188546]
[1738249610063,0.00014122,106090.0,106080.0,0.549346]
[1738249610263,0.00014122,106090.0,106080.0,0.70323752]
[1738249610468,0.26674536,106100.0,106090.0,0.188528]
[1738249610771,0.07015399,106120.0,106110.0,0.188492]
[1738249610975,0.30647393,106160.0,106150.0,0.188421]
[1738249611171,0.30647393,106160.0,106150.0,1.09735252]
[1738249611672,0.30647393,106160.0,106150.0,1.25124404]
[1738249611868,0.30647393,106160.0,106150.0,1.55124404]
[1738249612176,0.60551334,106200.0,106160.0,0.188403]
[1738249612476,0.46221334,106200.0,106190.0,0.15389152]
[1738249612666,0.10141334,106200.0,106190.0,0.15389152]
[1738249612866,0.10141334,106200.0,106170.0,0.51469152]
[1738249612867,0.46221334,106200.0,106170.0,0.51469152]
[1738249613063,0.46221334,106200.0,106180.0,0.15389152]
[1738249613266,0.9906435,106200.0,106180.0,0.03344]
[1738249613773,0.6308435,106200.0,106180.0,0.03344]
[1738249613969,0.9916435,106200.0,106180.0,0.03344]
[1738249614274,0.9906435,106200.0,106180.0,0.03344]
[1738249614466,0.6308435,106200.0,106180.0,0.03444]
[1738249614667,0.6308435,106200.0,106180.0,0.18833152]
[1738249614974,0.00116726,106190.0,106180.0,0.18833152]
[1738249615373,0.00116726,106190.0,106180.0,0.54913152]
[1738249615771,0.00158376,106190.0,106180.0,0.54913152]
[1738249616173,0.00158376,106190.0,106180.0,0.18833152]
[1738249616575,0.00258376,106190.0,106180.0,0.18833152]
[1738249616779,0.00258376,106190.0,106180.0,0.18819931]
[1738249616979,0.00458376,106190.0,106180.0,0.18819931]
[1738249617576,0.00458376,106190.0,106180.0,0.54899931]
[1738249618171,0.00458376,106190.0,106180.0,0.5603364]
[1738249619274,0.00458376,106190.0,106180.0,0.74879661]
[1738249619774,0.34458376,106190.0,106180.0,0.74879661]
[1738249620481,0.10009416,106200.0,106190.0,0.18835]
[1738249620671,0.04849759,106200.0,106190.0,0.70304152]
[1738249620867,0.04849759,106200.0,106190.0,0.73644152]
[1738249621073,0.04849759,106200.0,106180.0,0.16622861]
[1738249621074,0.40929759,106200.0,106180.0,0.16622861]
[1738249621282,0.40929759,106200.0,106190.0,0.0334]
[1738249621471,0.40929759,106200.0,106190.0,0.18729152]
[1738249621779,0.40929759,106200.0,106190.0,0.0384]
[1738249622171,0.18729759,106200.0,106190.0,0.0384]
[1738249622478,0.18729759,106200.0,106190.0,0.22575]
[1738249622683,0.18729759,106200.0,106190.0,0.22775]
[1738249622870,0.18729759,106200.0,106190.0,0.0394]
[1738249623179,0.54809759,106200.0,106190.0,0.004]
[1738249623381,0.73643059,106200.0,106190.0,0.004]
[1738249623681,0.18829759,106200.0,106190.0,0.002]
[1738249623881,0.18829759,106200.0,106190.0,0.34424152]
[1738249624279,0.18829759,106200.0,106190.0,0.19035]
[1738249624479,0.35,106190.0,106180.0,0.73645952]
[1738249624976,0.18829759,106200.0,106180.0,0.37565952]
[1738249625171,0.89132811,106200.0,106170.0,0.37214844]
[1738249625371,0.35,106190.0,106180.0,0.34225252]
[1738249625667,0.7108,106190.0,106180.0,0.34425252]
[1738249625874,0.35,106190.0,106180.0,0.34625252]
[1738249626071,0.35,106190.0,106180.0,0.002]
[1738249626273,1.04105,106190.0,106180.0,0.002]
[1738249626484,1.04105,106190.0,106170.0,0.01134844]
[1738249626784,1.04105,106190.0,106170.0,0.00014122]
[1738249626785,0.188368,106180.0,106170.0,0.00014122]
[1738249626972,0.680731,106190.0,106170.0,0.00014122]
[1738249627279,0.3608,106180.0,106170.0,0.00014122]
[1738249627471,0.188391,106170.0,106150.0,0.00141289]
[1738249627670,0.70308252,106170.0,106150.0,0.00141289]
[1738249627880,0.583187,106190.0,106150.0,0.00141289]
[1738249628072,0.538372,106180.0,106160.0,0.188403]
[1738249628580,0.35,106180.0,106160.0,0.51469152]
[1738249628776,0.35014122,106180.0,106170.0,0.188386]
[1738249628975,0.35014122,106180.0,106160.0,0.51483274]
[1738249628976,0.35014122,106180.0,106160.0,0.58274222]
[1738249629173,0.35014122,106180.0,106160.0,0.22194222]
[1738249629376,0.35014122,106180.0,106170.0,0.188386]
[1738249629875,0.71094122,106180.0,106170.0,0.188386]
[1738249630071,0.35014122,106180.0,106160.0,0.73863174]
[1738249630279,0.71094122,106180.0,106160.0,0.58474022]
[1738249630479,0.71094122,106180.0,106160.0,0.58774022]
[1738249630685,0.53851122,106180.0,106160.0,0.22694022]
[1738249630977,0.89931122,106180.0,106160.0,0.58774022]
[1738249631177,0.50403274,106180.0,106160.0,0.55034022]
[1738249631375,0.71094122,106180.0,106170.0,0.001]
[1738249631571,1.05320074,106180.0,106170.0,0.001]
[1738249632382,1.05320074,106180.0,106160.0,0.00214122]
[1738249632383,0.188386,106170.0,106160.0,0.00214122]
[1738249632688,0.188386,106170.0,106150.0,0.00141289]
[1738249632689,0.188403,106160.0,106150.0,0.00141289]
[1738249632880,0.188437,106150.0,106120.0,0.55068135]
[1738249633083,0.70311552,106150.0,106130.0,0.188454]
[1738249633385,0.3608,106140.0,106130.0,0.188454]
[1738249633973,0.7108,106140.0,106130.0,0.188454]
[1738249634179,0.35,106140.0,106130.0,0.34234552]
[1738249634384,0.35,106140.0,106130.0,0.549254]
[1738249634687,0.35,106140.0,106130.0,0.582654]
[1738249634983,0.35,106140.0,106130.0,0.549254]
[1738249635381,0.7108,106140.0,106120.0,0.37679003]
[1738249635580,1.05313852,106140.0,106120.0,0.00555457]
[1738249635783,0.351,106140.0,106120.0,0.19002657]
[1738249635984,0.7118,106140.0,106120.0,0.19002657]
[1738249636285,0.7108,106140.0,106130.0,0.002]
[1738249636485,0.7108,106140.0,106130.0,0.551257]
[1738249636486,0.35,106140.0,106130.0,0.551257]
[1738249636677,0.27102122,106150.0,106140.0,0.188439]
[1738249636881,0.27054122,106150.0,106140.0,0.188439]
[1738249637188,0.27054122,106150.0,106130.0,0.550251]
[1738249637379,0.63134122,106150.0,106130.0,0.550251]
[1738249637789,0.27054122,106150.0,106130.0,0.3628]
[1738249637981,0.00014122,106150.0,106140.0,0.70313052]
[1738249638183,0.00014122,106150.0,106140.0,0.71313052]
[1738249638893,0.00014122,106150.0,106140.0,0.85483052]
[1738249639778,0.00014122,106150.0,106140.0,0.88823052]
[1738249639977,0.00014122,106150.0,106140.0,0.89723052]
[1738249640384,0.15389152,106150.0,106140.0,0.019]
[1738249640687,0.3608,106160.0,106140.0,0.197433]
[1738249641079,0.3608,106150.0,106140.0,0.007]
[1738249641581,0.1898016,106170.0,106140.0,0.71012652]
[1738249641890,0.36094122,106160.0,106150.0,0.188421]
[1738249643284,0.36094122,106160.0,106150.0,0.189421]
[1738249643486,0.36094122,106160.0,106150.0,0.190421]
[1738249643895,0.70323574,106160.0,106150.0,0.002]
[1738249645394,0.73663574,106160.0,106150.0,0.002]
[1738249645996,0.73663574,106160.0,106150.0,0.001]
[1738249646195,0.73663574,106160.0,106150.0,0.002]
[1738249646497,0.73663574,106160.0,106140.0,0.00014122]
[1738249646498,0.188421,106150.0,106140.0,0.00014122]
[1738249646698,0.98011252,106150.0,106140.0,0.00014122]
[1738249647296,0.188439,106140.0,106130.0,0.49324989]
[1738249647488,0.70313052,106140.0,106130.0,0.49324989]
[1738249647797,0.70313052,106140.0,106130.0,0.68170689]
[1738249648094,0.188457,106130.0,106120.0,0.40846343]
[1738249648288,0.70314852,106130.0,106120.0,0.21999143]
[1738249648486,0.188475,106120.0,106110.0,0.27481303]
[1738249648706,0.83836652,106120.0,106110.0,0.46330503]
[1738249649083,0.83836652,106120.0,106110.0,0.27481303]
[1738249649999,0.684475,106120.0,106110.0,0.27781303]
[1738249650186,0.684475,106120.0,106110.0,0.28481303]
[1738249650390,0.83836652,106120.0,106110.0,0.28481303]
[1738249650695,0.83936652,106120.0,106110.0,0.28181303]
[1738249651281,0.48899109,106120.0,106110.0,0.47030503]
[1738249651485,0.1362,106120.0,106110.0,0.47030503]
[1738249651686,0.1362,106120.0,106110.0,0.46330503]
[1738249651883,0.1392,106120.0,106110.0,0.46330503]
[1738249652198,0.004,106120.0,106110.0,0.73672474]
[1738249652387,0.001,106120.0,106110.0,0.86772474]
[1738249652590,0.00014122,106140.0,106110.0,0.98923274]
[1738249652787,0.00014122,106140.0,106130.0,1.06394852]
[1738249653082,0.00014122,106140.0,106130.0,1.09734852]
[1738249653489,0.00014122,106140.0,106130.0,0.549257]
[1738249653790,0.00014122,106140.0,106130.0,0.73654852]
[1738249654599,0.00014122,106140.0,106130.0,0.74654852]
[1738249654986,0.00014122,106140.0,106130.0,1.04654852]
[1738249655189,0.1416136,106170.0,106130.0,0.85809152]
[1738249655394,0.1416136,106170.0,106160.0,0.3608]
[1738249655595,0.4916136,106170.0,106160.0,0.3608]
[1738249656800,1.19469312,106170.0,106150.0,0.58274722]
[1738249656993,1.19469312,106170.0,106150.0,0.36094122]
[1738249657192,1.19469512,106170.0,106150.0,0.39434122]
[1738249657495,0.4916136,106170.0,106150.0,0.73664474]
[1738249657696,0.3514136,106170.0,106160.0,0.549203]
[1738249658499,0.50530512,106170.0,106150.0,0.71255222]
[1738249658702,0.86610512,106170.0,106150.0,0.68115222]
[1738249658999,0.15389152,106160.0,106150.0,0.03554122]
[1738249659195,0.70309452,106160.0,106150.0,0.00214122]
[1738249659397,0.65239152,106160.0,106150.0,0.00114122]
[1738249660102,0.65239152,106160.0,106150.0,0.00214122]
[1738249660303,0.29159152,106160.0,106150.0,0.00114122]
[1738249660487,0.65239152,106160.0,106150.0,0.00114122]
[1738249660693,0.4985,106160.0,106150.0,0.00114122]
[1738249660995,0.1377,106160.0,106150.0,0.18956222]
[1738249661196,0.0014136,106170.0,106160.0,0.188403]
[1738249661398,0.0014136,106170.0,106160.0,0.549203]
[1738249661591,0.70449312,106170.0,106150.0,0.55135922]
[1738249661791,0.51469152,106160.0,106150.0,0.00214122]
[1738249661992,0.70309452,106160.0,106150.0,0.00214122]
[1738249662202,0.5041,106160.0,106150.0,0.00214122]
[1738249662407,0.5041,106160.0,106150.0,0.00114122]
[1738249662703,0.84639452,106160.0,106150.0,0.00114122]
[1738249663097,0.84639452,106160.0,106150.0,0.00214122]
[1738249663493,0.84639452,106160.0,106150.0,0.00114122]
[1738249663691,0.98979452,106160.0,106150.0,0.00114122]
[1738249664707,1.02319452,106160.0,106150.0,0.00114122]
[1738249665104,1.02419452,106160.0,106150.0,0.00014122]
[1738249665293,1.02519452,106160.0,106150.0,0.00014122]
[1738249665799,1.18008604,106160.0,106150.0,0.00014122]
[1738249666000,1.18008604,106160.0,106130.0,0.18845]
[1738249666001,0.188439,106140.0,106130.0,0.18845]
[1738249666197,0.70313052,106140.0,106130.0,0.18845]
[1738249666806,1.06393052,106140.0,106130.0,0.18845]
[1738249666999,0.910039,106140.0,106130.0,0.18845]
[1738249667809,0.910039,106140.0,106130.0,0.18945]
[1738249668209,1.06393052,106140.0,106130.0,0.18945]
[1738249668409,1.06393052,106140.0,106130.0,0.19045]
[1738249669003,1.06393052,106140.0,106130.0,0.002]
[1738249669200,1.06393052,106140.0,106120.0,0.18861222]
[1738249669201,0.188457,106130.0,106120.0,0.00014122]
[1738249669406,0.97194852,106130.0,106120.0,0.00014122]
[1738249670709,0.047119,106120.0,106070.0,0.27467181]
[1738249671002,0.70323752,106080.0,106070.0,0.27467181]
[1738249671402,0.84513752,106080.0,106070.0,0.27467181]
[1738249671609,0.87853752,106080.0,106070.0,0.27467181]
[1738249671999,0.87853752,106080.0,106070.0,0.28167181]
[1738249672604,1.03242904,106080.0,106070.0,0.05937181]
[1738249672906,1.03442904,106080.0,106070.0,0.05937181]
[1738249673110,1.03442904,106080.0,106070.0,0.06237181]
[1738249673806,1.03442904,106080.0,106060.0,0.04301109]
[1738249673807,0.188563,106070.0,106060.0,0.04301109]
[1738249674013,0.188599,106050.0,106040.0,0.38487037]
[1738249674308,1.06409052,106050.0,106040.0,0.38487037]
[1738249674507,0.910199,106050.0,106040.0,0.188617]
[1738249674909,1.06409052,106050.0,106040.0,0.188617]
[1738249675509,0.03354122,106060.0,106030.0,0.36235562]
[1738249675510,0.51483274,106060.0,106030.0,0.36235562]
[1738249675708,0.51483274,106060.0,106050.0,0.188599]
[1738249675709,0.36094122,106060.0,106050.0,0.188599]
[1738249676102,0.00014122,106060.0,106050.0,0.188599]